bitfinex/quotes_BTCUSD_20241128
["timestamp","ask_amount","ask_price","bid_price","bid_amount"]
[1732835501406,0.23028221,95751.0,95750.0,0.02619895]
[1732835501844,0.23114451,95751.0,95750.0,0.02619895]
[1732835502272,0.12670751,95751.0,95750.0,0.02619895]
[1732835504718,0.12670751,95751.0,95750.0,0.016]
[1732835504924,0.12670751,95751.0,95750.0,0.02619895]
[1732835505144,0.12670751,95751.0,95750.0,0.016]
[1732835505372,0.12670751,95751.0,95750.0,0.02619895]
[1732835508458,0.12070751,95751.0,95750.0,0.02619895]
[1732835513803,0.10370751,95751.0,95750.0,0.02619895]
[1732835514728,0.10370751,95751.0,95750.0,0.13063695]
[1732835514951,0.0008623,95751.0,95750.0,0.13063695]
[1732835521344,0.0008623,95751.0,95750.0,0.36341532]
[1732835522486,0.0008623,95751.0,95750.0,0.13063695]
[1732835523398,0.0992873,95763.0,95750.0,0.02619895]
[1732835523669,0.10284521,95762.0,95756.0,0.104431]
[1732835524112,0.10284521,95762.0,95757.0,0.01019334]
[1732835524363,0.10284521,95762.0,95757.0,0.11462434]
[1732835524600,0.10284521,95762.0,95757.0,0.01019334]
[1732835525741,0.10484521,95762.0,95757.0,0.24325722]
[1732835525955,0.10584521,95762.0,95757.0,0.24333172]
[1732835526401,0.10484521,95762.0,95757.0,0.24333172]
[1732835526847,0.10484521,95762.0,95757.0,0.24633172]
[1732835527483,0.10284521,95762.0,95758.0,0.23313838]
[1732835527711,0.10384521,95762.0,95758.0,0.23313838]
[1732835527951,0.1053,95759.0,95757.0,0.008]
[1732835528181,0.51097421,95758.0,95757.0,0.008]
[1732835528399,0.51097421,95758.0,95757.0,0.005]
[1732835528633,0.51097421,95758.0,95750.0,0.0017242]
[1732835528634,0.127437,95751.0,95750.0,0.0017242]
[1732835528848,1.04998221,95751.0,95750.0,0.0017242]
[1732835529085,1.04998221,95751.0,95744.0,0.0009952]
[1732835529086,0.957144,95745.0,95744.0,0.0009952]
[1732835529269,0.957144,95745.0,95732.0,0.0017246]
[1732835529270,0.6913,95742.0,95732.0,0.0017246]
[1732835529525,0.31010221,95733.0,95732.0,0.0017246]
[1732835530042,0.35870221,95733.0,95732.0,0.0017246]
[1732835530951,0.36711402,95733.0,95732.0,0.0017246]
[1732835531422,0.37111402,95733.0,95732.0,0.0017246]
[1732835531630,0.36711402,95733.0,95732.0,0.0017246]
[1732835532099,0.37111402,95733.0,95732.0,0.0017246]
[1732835532318,0.37311402,95733.0,95732.0,0.0017246]
[1732835534775,0.36911402,95733.0,95732.0,0.0017246]
[1732835535013,0.36711402,95733.0,95732.0,0.0017246]
[1732835535246,0.37311402,95733.0,95732.0,0.0017246]
[1732835535721,0.37111402,95733.0,95732.0,0.0017246]
[1732835535951,0.36711402,95733.0,95732.0,0.0017246]
[1732835536169,0.36911402,95733.0,95732.0,0.0017246]
[1732835537599,0.37311402,95733.0,95732.0,0.0017246]
[1732835537810,0.36911402,95733.0,95732.0,0.0017246]
[1732835538041,0.37111402,95733.0,95732.0,0.0017246]
[1732835538540,0.36311402,95733.0,95732.0,0.0017246]
[1732835538789,0.36711402,95733.0,95732.0,0.0017246]
[1732835539026,0.59400652,95733.0,95732.0,0.0017246]
[1732835539241,0.59700652,95733.0,95732.0,0.0017246]
[1732835539472,0.52311402,95733.0,95732.0,0.0017246]
[1732835539689,0.52011402,95733.0,95732.0,0.0017246]
[1732835540166,0.52411402,95733.0,95732.0,0.0017246]
[1732835540607,0.52511402,95733.0,95732.0,0.0017246]
[1732835541061,0.53211402,95733.0,95732.0,0.0027246]
[1732835541281,0.53211402,95733.0,95732.0,0.0017246]
[1732835541282,0.52511402,95733.0,95732.0,0.0017246]
[1732835541787,1.07341402,95733.0,95732.0,0.0017246]
[1732835543155,1.17624548,95733.0,95732.0,0.0017246]
[1732835543428,1.08977483,95733.0,95732.0,0.0017246]
[1732835545998,1.07341402,95733.0,95732.0,0.0017246]
[1732835549024,1.07885749,95733.0,95732.0,0.0017246]
[1732835553796,1.07885749,95733.0,95709.0,2e-07]
[1732835553797,0.01,95720.0,95709.0,2e-07]
[1732835554055,0.3,95722.0,95698.0,0.0009806]
[1732835554056,0.15,95705.0,95698.0,0.0009806]
[1732835554303,0.15,95705.0,95674.0,0.0462]
[1732835554304,0.53939031,95698.0,95670.0,0.01]
[1732835554544,0.127523,95672.0,95671.0,0.0104]
[1732835554791,0.127523,95672.0,95671.0,0.01693881]
[1732835554792,0.23036821,95672.0,95671.0,0.01693881]
[1732835555036,0.23036821,95672.0,95671.0,0.00693881]
[1732835555270,0.23036821,95672.0,95671.0,0.01693881]
[1732835555981,0.23136821,95672.0,95671.0,0.02193881]
[1732835556695,0.23136821,95672.0,95671.0,0.02493881]
[1732835560833,0.12684521,95672.0,95671.0,0.02493881]
[1732835561048,0.23136821,95672.0,95671.0,0.02493881]
[1732835561262,0.23136821,95672.0,95671.0,0.03540147]
[1732835562148,0.23136821,95672.0,95671.0,0.03712607]
[1732835562881,0.12684521,95672.0,95671.0,0.03712642]
[1732835563107,0.23136821,95672.0,95671.0,0.03712642]
[1732835564255,0.23136821,95672.0,95671.0,0.02712642]
[1732835567204,0.12684521,95672.0,95671.0,0.02712642]
[1732835567649,0.23136821,95672.0,95671.0,0.02712642]
[1732835568317,0.12684521,95672.0,95671.0,0.02773823]
[1732835568534,0.22536821,95672.0,95671.0,0.02773823]
[1732835568736,0.12084521,95672.0,95671.0,0.02773823]
[1732835568989,0.22536821,95672.0,95671.0,0.02773823]
[1732835571451,0.12084521,95672.0,95671.0,0.02773823]
[1732835571743,0.22536821,95672.0,95671.0,0.02773823]
[1732835572640,0.12084521,95672.0,95671.0,0.02773823]
[1732835573521,0.22536821,95672.0,95671.0,0.02773823]
[1732835573749,0.12084521,95672.0,95671.0,0.13226223]
[1732835573978,0.12084521,95672.0,95671.0,0.02773823]
[1732835580237,0.12084521,95672.0,95671.0,0.26087203]
[1732835580445,0.12084521,95672.0,95671.0,0.02773823]
[1732835581306,0.12084521,95672.0,95671.0,0.26090445]
[1732835582059,0.12084521,95672.0,95671.0,0.35888888]
[1732835582290,0.12084521,95672.0,95671.0,0.36550148]
[1732835582508,0.12084521,95672.0,95671.0,0.36617905]
[1732835583182,0.12084521,95672.0,95671.0,0.36550148]
[1732835583431,0.10384521,95672.0,95671.0,0.13226156]
[1732835585141,0.10384521,95672.0,95671.0,0.13226147]
[1732835586002,0.12684521,95672.0,95671.0,0.13226147]
[1732835590766,0.001,95672.0,95671.0,0.2728114]
[1732835591040,0.001,95672.0,95671.0,0.27096147]
[1732835591267,0.001,95672.0,95671.0,0.71698354]
[1732835591488,0.008,95705.0,95671.0,0.71698354]
[1732835591489,0.008,95705.0,95686.0,0.233208]
[1732835591708,0.008,95705.0,95686.0,0.25465909]
[1732835591934,0.0796,95714.0,95686.0,0.26119796]
[1732835591935,0.00832692,95706.0,95686.0,0.26119796]
[1732835592151,0.0009973,95707.0,95686.0,0.26119796]
[1732835593323,0.0465,95706.0,95686.0,0.13249796]
[1732835593609,0.0027254,95687.0,95686.0,0.13649796]
[1732835594083,0.0027254,95687.0,95686.0,0.27049796]
[1732835594547,0.0027254,95687.0,95686.0,0.5414376]
[1732835595042,0.0017254,95687.0,95686.0,0.26149796]
[1732835595520,0.0027254,95687.0,95686.0,0.26449796]
[1732835595797,0.0027254,95687.0,95686.0,0.27049796]
[1732835596256,0.0017254,95687.0,95686.0,0.26349796]
[1732835596714,0.0027254,95687.0,95686.0,0.27249796]
[1732835597182,0.0027254,95687.0,95686.0,0.26649796]
[1732835597405,0.0027254,95687.0,95686.0,0.27549796]
[1732835598052,0.0017254,95687.0,95686.0,0.26649796]
[1732835598244,0.0017254,95687.0,95686.0,0.2584969]
[1732835598497,0.2099416,95716.0,95686.0,0.2584969]
[1732835598498,0.023,95715.0,95704.0,0.104488]
[1732835598751,0.127482,95711.0,95708.0,0.0009816]
[1732835598984,0.023,95709.0,95708.0,0.0009816]
[1732835599238,0.12584521,95709.0,95708.0,0.0009816]
[1732835600161,0.12584521,95709.0,95708.0,0.0069816]
[1732835601301,0.12584521,95709.0,95708.0,0.0009816]
[1732835601737,0.12684521,95709.0,95708.0,0.0109816]
[1732835602007,0.10384521,95709.0,95708.0,0.0209816]
[1732835602241,0.10384521,95709.0,95708.0,0.1254656]
[1732835602485,0.10384521,95709.0,95708.0,0.13200216]
[1732835606988,0.10384521,95709.0,95708.0,0.02751816]
[1732835607238,0.10384521,95709.0,95708.0,0.0109816]
[1732835607239,0.35582821,95709.0,95708.0,0.0109816]
[1732835607449,0.35582821,95709.0,95708.0,0.01]
[1732835607450,0.53710793,95709.0,95708.0,0.01]
[1732835607663,0.50582821,95709.0,95708.0,0.01]
[1732835608090,0.50582821,95709.0,95708.0,0.007]
[1732835608328,0.51425209,95709.0,95708.0,0.007]
[1732835608558,0.51425209,95709.0,95692.0,0.01]
[1732835608559,0.023,95694.0,95692.0,0.01]
[1732835608788,0.12584521,95693.0,95692.0,0.01]
[1732835609534,0.23034521,95693.0,95692.0,0.01]
[1732835609753,0.31254521,95693.0,95692.0,0.01653773]
[1732835609967,0.31254521,95693.0,95692.0,0.01653762]
[1732835610207,0.20804521,95693.0,95692.0,0.01653762]
[1732835610438,0.20804521,95693.0,95692.0,0.01953762]
[1732835611179,0.20804521,95693.0,95692.0,0.02653762]
[1732835611422,0.20804521,95693.0,95692.0,0.01953762]
[1732835611644,0.20804521,95693.0,95692.0,0.02]
[1732835611645,0.12684521,95693.0,95692.0,0.02]
[1732835611877,0.23134521,95693.0,95692.0,0.02653768]
[1732835613400,0.22534521,95693.0,95692.0,0.02653768]
[1732835614774,0.22534521,95693.0,95692.0,0.02653762]
[1732835616336,0.27504521,95693.0,95692.0,0.02653762]
[1732835616553,0.27504521,95693.0,95692.0,0.01853762]
[1732835617685,0.35424521,95693.0,95692.0,0.01853762]
[1732835618352,0.30454521,95693.0,95692.0,0.01853762]
[1732835620147,0.30540761,95693.0,95692.0,0.01853762]
[1732835621282,0.22620761,95693.0,95692.0,0.01853762]
[1732835621979,0.0018624,95693.0,95692.0,0.01853762]
[1732835622196,0.0018624,95693.0,95692.0,0.02899781]
[1732835623820,0.0018624,95693.0,95692.0,0.13349881]
[1732835624057,0.0018624,95693.0,95692.0,0.13534831]
[1732835624291,0.0018624,95693.0,95692.0,0.18294831]
[1732835624740,0.0018624,95693.0,95692.0,0.46262299]
[1732835624951,0.0008624,95693.0,95692.0,0.17109881]
[1732835625179,0.0008624,95693.0,95692.0,0.45962283]
[1732835625410,0.0018624,95693.0,95692.0,0.46677349]
[1732835625905,0.0018624,95693.0,95692.0,0.46676981]
[1732835626142,0.0018624,95693.0,95692.0,0.18709881]
[1732835626381,0.0018624,95693.0,95692.0,0.46863508]
[1732835626604,0.0018624,95693.0,95692.0,0.46678574]
[1732835626835,0.0018624,95693.0,95692.0,0.26669881]
[1732835628442,0.0779178,95720.0,95716.0,0.104475]
[1732835628654,0.10284521,95719.0,95717.0,0.00653762]
[1732835628862,0.10284521,95719.0,95718.0,0.00753532]
[1732835632201,0.10370721,95719.0,95718.0,0.00853532]
[1732835634793,0.10370721,95719.0,95718.0,0.00853361]
[1732835637985,0.10370721,95719.0,95718.0,0.11300661]
[1732835638223,0.10370721,95719.0,95718.0,0.11300658]
[1732835639093,0.10370721,95719.0,95718.0,0.00853358]
[1732835641037,0.10370721,95719.0,95718.0,0.00853365]
[1732835641471,0.10370721,95719.0,95718.0,0.0019977]
[1732835641692,0.20817921,95719.0,95718.0,0.00853364]
[1732835641949,0.20817921,95719.0,95718.0,0.0019977]
[1732835641950,0.35857921,95719.0,95718.0,0.0019977]
[1732835642396,0.35857921,95719.0,95718.0,0.001]
[1732835643491,0.36079959,95719.0,95718.0,0.001]
[1732835644151,0.20896,95712.0,95707.0,0.0009836]
[1732835644388,0.023,95710.0,95708.0,0.00653649]
[1732835644620,0.127483,95710.0,95709.0,0.00698718]
[1732835644870,0.23032821,95710.0,95709.0,0.00698718]
[1732835645098,0.12584521,95710.0,95709.0,0.00698718]
[1732835645559,0.00544349,95718.0,95715.0,0.002]
[1732835645777,0.10284521,95717.0,95716.0,0.00653649]
[1732835646056,0.10284521,95718.0,95717.0,0.106474]
[1732835646267,0.10284521,95718.0,95717.0,0.11301049]
[1732835647618,0.10284521,95718.0,95717.0,0.12446411]
[1732835648056,0.10284521,95718.0,95717.0,0.12546411]
[1732835650242,0.10284521,95718.0,95717.0,0.02099011]
[1732835650483,0.10284521,95718.0,95717.0,0.02098936]
[1732835650959,0.10284521,95718.0,95717.0,0.12546336]
[1732835651437,0.10284521,95718.0,95717.0,0.12546328]
[1732835652354,0.10284521,95718.0,95717.0,0.02098928]
[1732835653746,0.10284521,95718.0,95717.0,0.02098943]
[1732835655341,0.10284521,95718.0,95717.0,0.02271343]
[1732835657575,0.20731821,95718.0,95717.0,0.02271343]
[1732835657808,0.10284521,95718.0,95717.0,0.02271343]
[1732835658265,0.10284521,95718.0,95717.0,0.02283469]
[1732835658455,0.09684521,95718.0,95717.0,0.02283469]
[1732835661975,0.09684521,95718.0,95717.0,0.01237738]
[1732835663129,0.000862,95719.0,95718.0,0.183673]
[1732835663353,0.000862,95719.0,95718.0,0.19020882]
[1732835663609,0.000862,95719.0,95718.0,0.23925754]
[1732835663832,0.000862,95719.0,95718.0,0.24786323]
[1732835664313,0.000862,95719.0,95718.0,0.28028797]
[1732835664546,0.000862,95719.0,95718.0,0.25286323]
[1732835664792,0.001862,95719.0,95718.0,0.26186323]
[1732835665035,0.001862,95719.0,95718.0,0.42186323]
[1732835665250,0.000862,95720.0,95718.0,0.42186323]
[1732835665251,0.000862,95720.0,95719.0,0.264472]
[1732835665480,0.000862,95720.0,95719.0,0.28146223]
[1732835666959,0.000862,95720.0,95719.0,0.28145992]
[1732835667644,0.001862,95720.0,95719.0,0.29845992]
[1732835670554,0.001862,95720.0,95719.0,0.71121721]
[1732835671438,0.001862,95720.0,95719.0,0.29845992]
[1732835672810,0.001862,95720.0,95719.0,0.53740513]
[1732835673517,0.01095532,95727.0,95726.0,0.276464]
[1732835673750,0.01095532,95727.0,95726.0,0.51909713]
[1732835674696,0.2018459,95750.0,95732.0,0.022]
[1732835674920,0.2018459,95750.0,95732.0,0.28582268]
[1732835675131,0.2018459,95750.0,95732.0,0.36487421]
[1732835675846,0.2018459,95750.0,95732.0,0.52171942]
[1732835676721,0.2018459,95750.0,95732.0,0.52971942]
[1732835677407,0.2018459,95750.0,95732.0,0.94197521]
[1732835677641,0.2018459,95750.0,95732.0,0.52971942]
[1732835678740,0.2018459,95750.0,95732.0,0.52071942]
[1732835678962,0.2018459,95750.0,95732.0,0.52317041]
[1732835679174,0.2018459,95750.0,95732.0,0.53217041]
[1732835679397,0.2018459,95750.0,95732.0,0.52617041]
[1732835679613,0.2018459,95750.0,95732.0,0.52317041]
[1732835679844,0.2018459,95750.0,95732.0,0.5315798]
[1732835680970,0.2018459,95750.0,95732.0,0.5325798]
[1732835681194,0.2018459,95750.0,95732.0,0.5315798]
[1732835681412,0.2018459,95750.0,95732.0,0.5325798]
[1732835681648,0.2018459,95750.0,95732.0,0.5315798]
[1732835682142,0.2018459,95750.0,95732.0,0.5325798]
[1732835682356,0.2018459,95750.0,95732.0,0.94363998]
[1732835682801,0.2018459,95750.0,95732.0,0.94463998]
[1732835683028,0.2018459,95750.0,95732.0,0.94463888]
[1732835683282,0.2018459,95750.0,95732.0,0.94363888]
[1732835683518,0.2018459,95750.0,95732.0,0.5325787]
[1732835683738,0.2018459,95750.0,95732.0,0.94363888]
[1732835684181,0.2018459,95750.0,95732.0,0.94348012]
[1732835684411,0.2018459,95750.0,95732.0,0.94248012]
[1732835684841,0.2018459,95750.0,95732.0,0.94348012]
[1732835685070,0.2018459,95750.0,95732.0,0.94248012]
[1732835685285,0.2018459,95750.0,95732.0,0.94348012]
[1732835685953,0.2018459,95750.0,95732.0,0.5325787]
[1732835687089,0.2018459,95750.0,95732.0,0.94335403]
[1732835687307,0.2018459,95750.0,95732.0,0.5325787]
[1732835688429,0.1967082,95750.0,95749.0,0.106439]
[1732835688646,0.1967082,95750.0,95749.0,0.1244183]
[1732835688869,0.1957245,95750.0,95749.0,0.1244183]
[1732835690336,0.02802914,95750.0,95749.0,0.58556729]
[1732835690582,0.0017258,95768.0,95767.0,0.35682]
[1732835690809,0.0017258,95768.0,95767.0,0.4661974]
[1732835692441,0.0017258,95768.0,95767.0,0.4671974]
[1732835693112,0.0017258,95768.0,95767.0,0.47535178]
[1732835693781,0.0017258,95768.0,95767.0,0.47634368]
[1732835694657,0.0017258,95768.0,95767.0,0.49737433]
[1732835699634,0.0017258,95768.0,95767.0,0.90753715]
[1732835699861,0.0017258,95768.0,95767.0,0.49737433]
[1732835700295,0.0017254,95783.0,95782.0,0.106403]
[1732835700504,0.0017254,95783.0,95782.0,0.11578229]
[1732835700925,0.0017254,95783.0,95782.0,0.39312413]
[1732835701178,0.0017254,95783.0,95782.0,0.39127653]
[1732835701395,0.0017254,95783.0,95782.0,0.11393469]
[1732835701682,0.0017254,95783.0,95782.0,0.38862752]
[1732835701906,0.0017254,95783.0,95782.0,0.3867799]
[1732835702142,0.0017254,95783.0,95782.0,0.28293469]
[1732835702361,0.0017254,95783.0,95782.0,0.27393469]
[1732835702586,0.0017254,95783.0,95782.0,0.2951955]
[1732835703053,0.0017254,95783.0,95782.0,0.3036252]
[1732835703264,0.0017254,95783.0,95782.0,0.3106252]
[1732835703488,0.0773883,95799.0,95794.0,0.10439]
[1732835703701,0.0773883,95799.0,95797.0,0.23112671]
[1732835703922,0.0773883,95799.0,95798.0,0.11291819]
[1732835704141,0.0476,95802.0,95801.0,0.104383]
[1732835704353,0.0476,95802.0,95801.0,0.34394368]
[1732835704588,0.0008621,95805.0,95804.0,0.106379]
[1732835704836,0.0008621,95805.0,95804.0,0.34575279]
[1732835705039,0.0008621,95805.0,95804.0,0.34388107]
[1732835705279,0.0008621,95805.0,95804.0,0.11290787]
[1732835705830,0.0008625,95809.0,95808.0,0.106375]
[1732835706077,0.0008625,95809.0,95808.0,0.30839613]
[1732835706303,0.0008625,95809.0,95808.0,0.46654908]
[1732835706525,0.0008625,95809.0,95808.0,0.39404079]
[1732835706983,0.0008625,95809.0,95808.0,0.27119558]
[1732835707208,0.0008625,95809.0,95808.0,0.27919558]
[1732835707433,0.0008625,95809.0,95808.0,0.68816676]
[1732835707691,0.0008625,95809.0,95808.0,0.27919558]
[1732835707903,0.0008625,95809.0,95808.0,0.27119558]
[1732835708160,0.0008625,95809.0,95808.0,0.28019461]
[1732835708604,0.0008625,95809.0,95808.0,0.70816579]
[1732835708815,0.0008625,95809.0,95808.0,0.69816579]
[1732835709281,0.0008625,95809.0,95808.0,0.69916579]
[1732835709787,0.0008625,95809.0,95808.0,0.29819461]
[1732835710008,0.0008625,95809.0,95808.0,0.41103982]
[1732835710456,0.00074869,95809.0,95808.0,0.40303982]
[1732835710679,0.00074869,95809.0,95808.0,0.41203982]
[1732835711128,0.000862,95820.0,95814.0,0.116368]
[1732835711386,0.000862,95820.0,95814.0,0.2673617]
[1732835711841,0.000862,95820.0,95814.0,0.27388932]
[1732835712730,0.046562,95815.0,95814.0,0.11388932]
[1732835712961,0.123462,95815.0,95814.0,0.00952132]
[1732835713171,0.123462,95815.0,95814.0,0.24017737]
[1732835713477,0.123462,95815.0,95814.0,0.24917737]
[1732835713913,0.123462,95815.0,95814.0,0.02552132]
[1732835714137,0.227829,95815.0,95814.0,0.02552132]
[1732835714600,0.227829,95815.0,95814.0,0.02552247]
[1732835715042,0.227829,95815.0,95814.0,0.01852247]
[1732835715269,0.227829,95815.0,95814.0,0.00952247]
[1732835715513,0.35367421,95815.0,95814.0,0.00752247]
[1732835716040,0.24930721,95815.0,95814.0,0.005]
[1732835716284,0.123462,95815.0,95814.0,0.11289753]
[1732835716516,0.123462,95815.0,95814.0,0.01252953]
[1732835716952,0.123462,95815.0,95814.0,0.01352953]
[1732835717198,0.123462,95815.0,95814.0,0.01552953]
[1732835717415,0.123462,95815.0,95814.0,0.01252953]
[1732835717869,0.123462,95815.0,95814.0,0.007]
[1732835718085,0.123462,95815.0,95814.0,0.0135287]
[1732835718365,0.12407449,95815.0,95814.0,0.0165287]
[1732835718601,0.11807449,95815.0,95814.0,0.0085287]
[1732835718827,0.11807449,95815.0,95814.0,0.0175287]
[1732835719086,0.07751249,95815.0,95814.0,0.1128967]
[1732835719306,0.00061249,95815.0,95814.0,0.11974397]
[1732835719552,0.00061249,95815.0,95814.0,0.12574397]
[1732835719775,0.00061249,95815.0,95814.0,0.38606048]
[1732835719990,0.000862,95816.0,95815.0,0.276367]
[1732835720205,0.000862,95816.0,95815.0,0.38573957]
[1732835721854,0.000862,95816.0,95815.0,0.38673957]
[1732835722070,0.000862,95816.0,95815.0,0.38573957]
[1732835722538,0.023,95844.0,95843.0,0.002]
[1732835722749,0.23018121,95844.0,95843.0,0.00852736]
[1732835725233,0.23018121,95844.0,95843.0,0.01552736]
[1732835725450,0.23018121,95844.0,95843.0,0.01952736]
[1732835725689,0.23018121,95844.0,95843.0,0.01052736]
[1732835725905,0.23018121,95844.0,95843.0,0.01752736]
[1732835726156,0.12584521,95844.0,95843.0,0.01752736]
[1732835726414,0.22987248,95844.0,95843.0,0.01752736]
[1732835726875,0.22987248,95844.0,95843.0,0.01352736]
[1732835727107,0.22987248,95844.0,95843.0,0.01552736]
[1732835728428,0.23073368,95844.0,95843.0,0.01352736]
[1732835728923,0.23073368,95844.0,95843.0,0.00852736]
[1732835729361,0.23073368,95844.0,95843.0,0.01052736]
[1732835730501,0.23073368,95844.0,95843.0,0.004]
[1732835730731,0.23073368,95844.0,95843.0,0.01052732]
[1732835730948,0.23073368,95844.0,95843.0,0.00852732]
[1732835731193,0.23073368,95844.0,95843.0,0.00952732]
[1732835732091,0.23073368,95844.0,95843.0,0.00752732]
[1732835732303,1.12402476,95844.0,95843.0,0.001]
[1732835732537,1.04442399,95844.0,95843.0,0.001]
[1732835732751,1.04442399,95844.0,95843.0,0.003]
[1732835733198,0.89442399,95844.0,95843.0,0.003]
[1732835733416,0.88860773,95844.0,95843.0,0.003]
[1732835733647,0.88860773,95844.0,95843.0,0.00952745]
[1732835733885,0.88860773,95844.0,95843.0,0.00852745]
[1732835734113,0.88860773,95844.0,95843.0,0.00652745]
[1732835735029,0.104337,95843.0,95842.0,0.002]
[1732835735258,0.20718221,95843.0,95842.0,0.002]
[1732835735478,0.23018221,95843.0,95842.0,0.002]
[1732835737105,0.23018221,95843.0,95842.0,0.00852745]
[1732835737754,0.23018221,95843.0,95842.0,0.01052745]
[1732835738605,0.23018221,95843.0,95842.0,0.01452745]
[1732835739231,0.23018221,95843.0,95842.0,0.008]
[1732835739892,0.23018221,95843.0,95842.0,0.01452738]
[1732835740120,0.23018221,95843.0,95842.0,0.008]
[1732835740399,0.23018221,95843.0,95842.0,0.006]
[1732835740616,0.23018221,95843.0,95842.0,0.0077218]
[1732835741801,0.23018221,95843.0,95842.0,0.0057218]
[1732835742051,0.23018221,95843.0,95842.0,0.0017218]
[1732835742555,0.23018221,95843.0,95842.0,0.0027218]
[1732835742795,0.23018221,95843.0,95842.0,0.0017218]
[1732835743031,0.23018221,95843.0,95842.0,0.0047218]
[1732835743746,0.23018221,95843.0,95842.0,0.0057218]
[1732835748500,0.22418221,95843.0,95842.0,0.0057218]
[1732835751227,0.22418221,95843.0,95842.0,0.0047218]
[1732835751446,0.22418221,95843.0,95842.0,0.0017218]
[1732835751924,0.22418221,95843.0,95842.0,0.0027218]
[1732835752560,0.22418221,95843.0,95842.0,0.0017218]
[1732835753035,0.34898221,95843.0,95842.0,0.0027218]
[1732835755309,0.34898221,95843.0,95842.0,0.0017218]
[1732835756926,0.34898221,95843.0,95842.0,0.0037218]
[1732835757371,0.34898221,95843.0,95842.0,0.0017218]
[1732835757584,0.34898221,95843.0,95842.0,0.0027218]
[1732835758534,0.20444521,95843.0,95842.0,0.0027218]
[1732835758748,0.00104494,95844.0,95843.0,0.106337]
[1732835758973,0.00104494,95844.0,95843.0,0.1073339]
[1732835759225,0.00104494,95844.0,95843.0,0.11611053]
[1732835760381,0.00104494,95844.0,95843.0,0.25073134]
[1732835760859,0.00104494,95844.0,95843.0,0.02277353]
[1732835761520,0.00104494,95844.0,95843.0,0.0139969]
[1732835761765,0.00104494,95844.0,95843.0,0.02277353]
[1732835761993,0.10538094,95844.0,95843.0,0.02277353]
[1732835762215,0.00104494,95844.0,95843.0,0.02277353]
[1732835762457,0.00104494,95844.0,95843.0,0.0139969]
[1732835763124,0.23122615,95844.0,95843.0,0.0119969]
[1732835763341,0.30452615,95844.0,95843.0,0.0119969]
[1732835763588,0.30452615,95844.0,95843.0,0.0079969]
[1732835763828,0.30452615,95844.0,95843.0,0.00973775]
[1732835764093,0.30452615,95844.0,95843.0,0.01173775]
[1732835764992,0.30452615,95844.0,95843.0,0.00973775]
[1732835765216,0.30452615,95844.0,95843.0,0.01473775]
[1732835765437,0.30452615,95844.0,95843.0,0.00973775]
[1732835767056,0.33212615,95844.0,95843.0,0.00973775]
[1732835767731,0.33212615,95844.0,95843.0,0.0009969]
[1732835768428,0.33212615,95844.0,95843.0,0.00973798]
[1732835768663,0.33212615,95844.0,95843.0,0.0009969]
[1732835768891,0.48212615,95844.0,95843.0,0.0009969]
[1732835769153,0.48212615,95844.0,95842.0,0.0017218]
[1732835769154,0.408937,95843.0,95842.0,8e-07]
[1732835769374,0.51978221,95843.0,95842.0,8e-07]
[1732835769632,1.05917252,95843.0,95842.0,8e-07]
[1732835769889,1.14578337,95843.0,95842.0,8e-07]
[1732835770386,0.008,95836.0,95812.0,0.23225184]
[1732835770626,0.127373,95810.0,95809.0,0.23397424]
[1732835770854,0.23021821,95810.0,95809.0,0.0017224]
[1732835772228,0.23021821,95810.0,95809.0,0.0047224]
[1732835772694,0.23021821,95810.0,95809.0,0.0107224]
[1732835776650,0.31181821,95810.0,95809.0,0.0107224]
[1732835776878,0.31181821,95810.0,95809.0,0.0077224]
[1732835777613,0.51161821,95810.0,95809.0,0.0077224]
[1732835778069,0.51161821,95810.0,95809.0,0.0017224]
[1732835778514,0.50661821,95810.0,95809.0,0.0017224]
[1732835778775,0.50561821,95810.0,95809.0,0.0017224]
[1732835779009,0.50661821,95810.0,95809.0,0.0027224]
[1732835779436,0.50661821,95810.0,95809.0,0.00333489]
[1732835779664,0.50661821,95810.0,95809.0,0.00233489]
[1732835779665,0.50561821,95810.0,95809.0,0.00233489]
[1732835779881,0.50661821,95810.0,95809.0,0.00233489]
[1732835780563,0.51461821,95810.0,95809.0,0.00233489]
[1732835781280,0.51361821,95810.0,95809.0,0.00233489]
[1732835781528,0.51461821,95810.0,95809.0,0.00233489]
[1732835782016,1.05400852,95810.0,95809.0,0.00233489]
[1732835782684,1.05500852,95810.0,95809.0,0.00233489]
[1732835783128,1.05300852,95810.0,95809.0,0.00233489]
[1732835784269,1.04500852,95810.0,95809.0,0.00233489]
[1732835784526,0.97220852,95810.0,95809.0,0.00233489]
[1732835784760,0.82220852,95810.0,95809.0,0.00233489]
[1732835785023,0.001,95810.0,95809.0,0.00533489]
[1732835785494,0.001,95810.0,95809.0,0.01182254]
[1732835785740,0.002,95810.0,95809.0,0.01282254]
[1732835786197,0.104369,95814.0,95809.0,0.01182254]
[1732835786462,0.104369,95814.0,95809.0,0.00933489]
[1732835786691,0.104369,95814.0,95810.0,0.00748765]
[1732835786941,0.20873,95818.0,95810.0,0.00748765]
[1732835787193,0.104373,95810.0,95809.0,0.00433489]
[1732835787415,0.104373,95810.0,95809.0,0.00733489]
[1732835787632,0.104371,95812.0,95809.0,0.00733489]
[1732835787846,0.104371,95812.0,95809.0,0.00433489]
[1732835788072,0.208735,95815.0,95809.0,0.00433489]
[1732835788302,0.10437,95813.0,95810.0,0.001]
[1732835788752,0.208737,95814.0,95810.0,0.001]
[1732835789265,0.208739,95813.0,95810.0,0.001]
[1732835789494,0.41595321,95813.0,95812.0,0.002]
[1732835791114,0.31158421,95813.0,95810.0,0.002]
[1732835791328,0.104373,95810.0,95809.0,0.00433489]
[1732835791555,0.20721821,95810.0,95809.0,0.00433489]
[1732835791779,0.20721821,95810.0,95809.0,0.00233489]
[1732835792067,0.23021821,95810.0,95809.0,0.00233489]
[1732835793419,0.22421821,95810.0,95809.0,0.00233489]
[1732835795030,0.22521821,95810.0,95809.0,0.00233489]
[1732835795252,0.22421821,95810.0,95809.0,0.00233489]
[1732835795752,0.22521821,95810.0,95809.0,0.00233489]
[1732835798499,0.22421821,95810.0,95809.0,0.00233489]
[1732835798988,0.12584521,95810.0,95809.0,0.00533489]
[1732835799220,0.23021821,95810.0,95809.0,0.00433489]
[1732835799438,0.23021821,95810.0,95809.0,0.00733489]
[1732835800112,0.23021821,95810.0,95809.0,0.00833489]
[1732835800347,0.23021821,95810.0,95809.0,0.00533489]
[1732835800586,0.23021821,95810.0,95809.0,0.00433489]
[1732835801035,0.23021821,95810.0,95809.0,0.00633489]
[1732835801692,0.23021821,95810.0,95809.0,0.01133489]
[1732835801958,0.23021821,95810.0,95809.0,0.00633489]
[1732835802440,0.23021821,95810.0,95809.0,0.00833489]
[1732835802669,0.23021821,95810.0,95809.0,0.00633489]
[1732835803126,0.23021821,95810.0,95809.0,0.00733489]
[1732835803578,0.23021821,95810.0,95809.0,0.00633489]